[Event "Early-Titled-Tuesday-Blitz-July-09-2024"]
[Site "Chess.com"]
[Date "2024.07.09"]
[Round "7"]
[White "Dmitry_Ponomarev"]
[Black "Resourchess"]
[Result "1-0"]
[WhiteElo "2523"]
[BlackElo "2369"]
[TimeControl "180+1"]
[EndTime "9:20:07 PDT"]
[Termination "Dmitry_Ponomarev won on time"]

1. e4 {[%clk 0:03:00.9]} 1... d6 {[%clk 0:02:59.9]} 2. d4 {[%clk 0:02:58.8]}
2... g6 {[%clk 0:03:00.1]} 3. f3 {[%clk 0:02:56.7]} 3... Bg7 {[%clk 0:02:59.9]}
4. c4 {[%clk 0:02:56.1]} 4... e5 {[%clk 0:02:57.7]} 5. d5 {[%clk 0:02:55.2]}
5... a5 {[%clk 0:02:53.6]} 6. Nc3 {[%clk 0:02:55.2]} 6... Ne7 {[%clk 0:02:51.6]}
7. Be3 {[%clk 0:02:55.4]} 7... f5 {[%clk 0:02:51]} 8. Bd3 {[%clk 0:02:55.7]}
8... f4 {[%clk 0:02:49.9]} 9. Bf2 {[%clk 0:02:54.9]} 9... O-O {[%clk 0:02:50.2]}
10. c5 {[%clk 0:02:53.5]} 10... Na6 {[%clk 0:02:47.7]} 11. cxd6 {[%clk
0:02:51.9]} 11... cxd6 {[%clk 0:02:46.7]} 12. Nge2 {[%clk 0:02:52.3]} 12... g5
{[%clk 0:02:45.5]} 13. h3 {[%clk 0:02:51.2]} 13... Ng6 {[%clk 0:02:45.2]} 14.
Qb3 {[%clk 0:02:49.5]} 14... Rf6 {[%clk 0:02:29.9]} 15. Bb6 {[%clk 0:02:48.1]}
15... Qf8 {[%clk 0:02:21.9]} 16. Rc1 {[%clk 0:02:43.5]} 16... Nh4 {[%clk
0:02:18]} 17. Kf2 {[%clk 0:02:39.2]} 17... h5 {[%clk 0:02:16.4]} 18. Nb5 {[%clk
0:02:35.6]} 18... a4 {[%clk 0:02:05.5]} 19. Qa3 {[%clk 0:02:29.3]} 19... Bd7
{[%clk 0:02:01.4]} 20. Nc7 {[%clk 0:02:28.7]} 20... Nxc7 {[%clk 0:01:58.8]} 21.
Bxc7 {[%clk 0:02:28.3]} 21... Qe7 {[%clk 0:01:56.3]} 22. Bb6 {[%clk 0:02:26.2]}
22... Bf8 {[%clk 0:01:55.1]} 23. Rc7 {[%clk 0:02:25.1]} 23... Qg7 {[%clk
0:01:52.4]} 24. Rxb7 {[%clk 0:02:18.7]} 24... Nxg2 {[%clk 0:01:39.9]} 25. Kxg2
{[%clk 0:02:18.5]} 25... Bxh3+ {[%clk 0:01:39.5]} 26. Rxh3 {[%clk 0:02:08.8]}
26... Qxb7 {[%clk 0:01:38.9]} 27. Bf2 {[%clk 0:02:06.4]} 27... g4 {[%clk
0:01:37.1]} 28. Rxh5 {[%clk 0:02:06.4]} 28... gxf3+ {[%clk 0:01:35.6]} 29. Kxf3
{[%clk 0:02:07.3]} 29... Qf7 {[%clk 0:01:33.8]} 30. Rh1 {[%clk 0:01:55.5]} 30...
Rh6 {[%clk 0:01:26.7]} 31. Rxh6 {[%clk 0:01:39.2]} 31... Bxh6 {[%clk 0:01:26.6]}
32. Ng1 {[%clk 0:01:37.6]} 32... Qh5+ {[%clk 0:01:23.6]} 33. Kg2 {[%clk
0:01:37.7]} 33... Qg4+ {[%clk 0:01:22.7]} 34. Kf1 {[%clk 0:01:35.7]} 34... Qd1+
{[%clk 0:01:19.6]} 35. Kg2 {[%clk 0:01:35.5]} 35... Kh7 {[%clk 0:01:18.7]} 36.
Qxd6 {[%clk 0:01:22.6]} 36... Rg8+ {[%clk 0:01:18.4]} 37. Kh2 {[%clk 0:01:22.5]}
37... Qh5+ {[%clk 0:01:18]} 38. Nh3 {[%clk 0:01:22.4]} 38... f3 {[%clk
0:01:09.3]} 39. Qd7+ {[%clk 0:01:04.2]} 39... Kh8 {[%clk 0:01:06]} 40. Qf5
{[%clk 0:01:04.7]} 40... Rg2+ {[%clk 0:00:21.2]} 41. Kh1 {[%clk 0:01:04.3]}
41... Qxf5 {[%clk 0:00:12.8]} 42. exf5 {[%clk 0:01:05.2]} 42... Bf8 {[%clk
0:00:09.7]} 43. Be4 {[%clk 0:01:03.1]} 43... Bd6 {[%clk 0:00:07.9]} 44. Bxf3
{[%clk 0:01:03]} 44... Rg8 {[%clk 0:00:07.7]} 45. Be4 {[%clk 0:00:57.7]} 45...
Rb8 {[%clk 0:00:07.8]} 46. Ng5 {[%clk 0:00:43.7]} 46... Kg7 {[%clk 0:00:07.4]}
47. Ne6+ {[%clk 0:00:40.8]} 47... Kh6 {[%clk 0:00:05.1]} 48. Be3+ {[%clk
0:00:40.6]} 48... Kh5 {[%clk 0:00:05.2]} 49. Kg2 {[%clk 0:00:32.7]} 49... Rxb2+
{[%clk 0:00:04.7]} 50. Kh3 {[%clk 0:00:32.7]} 1-0

[Event "Early-Titled-Tuesday-Blitz-July-09-2024"]
[Site "Chess.com"]
[Date "2024.07.09"]
[Round "7"]
[White "Chessbard1972"]
[Black "nj123456"]
[Result "0-1"]
[WhiteElo "2236"]
[BlackElo "2535"]
[TimeControl "180+1"]
[EndTime "9:20:08 PDT"]
[Termination "nj123456 won on time"]

1. d4 {[%clk 0:03:00.9]} 1... d5 {[%clk 0:02:59.7]} 2. c4 {[%clk 0:03:00.1]}
2... e6 {[%clk 0:03:00.1]} 3. Nc3 {[%clk 0:02:59.5]} 3... Nf6 {[%clk 0:03:00]}
4. Bg5 {[%clk 0:02:58.9]} 4... Nbd7 {[%clk 0:02:56.8]} 5. cxd5 {[%clk 0:02:58]}
5... exd5 {[%clk 0:02:56.7]} 6. e3 {[%clk 0:02:58.4]} 6... c6 {[%clk 0:02:53.4]}
7. Qc2 {[%clk 0:02:58.5]} 7... Be7 {[%clk 0:02:53.4]} 8. Bd3 {[%clk 0:02:58.3]}
8... O-O {[%clk 0:02:53.8]} 9. f3 {[%clk 0:02:58.1]} 9... Re8 {[%clk 0:02:52.6]}
10. Nge2 {[%clk 0:02:56.9]} 10... Nf8 {[%clk 0:02:50]} 11. Bh4 {[%clk
0:02:55.7]} 11... g6 {[%clk 0:02:44.1]} 12. O-O {[%clk 0:02:52.4]} 12... c5
{[%clk 0:02:39.5]} 13. Qd2 {[%clk 0:02:30.4]} 13... b6 {[%clk 0:02:31.7]} 14.
Bf2 {[%clk 0:02:25.3]} 14... a6 {[%clk 0:02:20.1]} 15. Rad1 {[%clk 0:02:21.7]}
15... Bb7 {[%clk 0:02:19]} 16. Ng3 {[%clk 0:02:18.9]} 16... Ne6 {[%clk
0:02:10.5]} 17. Bb1 {[%clk 0:02:16.7]} 17... Qc7 {[%clk 0:02:05.2]} 18. Rfe1
{[%clk 0:02:07.5]} 18... Rad8 {[%clk 0:02:02.9]} 19. Nge2 {[%clk 0:02:03.7]}
19... Bd6 {[%clk 0:02:00.6]} 20. Bg3 {[%clk 0:01:59.3]} 20... h5 {[%clk
0:01:57.9]} 21. Bxd6 {[%clk 0:01:56.9]} 21... Qxd6 {[%clk 0:01:53.6]} 22. Ng3
{[%clk 0:01:34.3]} 22... h4 {[%clk 0:01:48.2]} 23. Nf1 {[%clk 0:01:32.9]} 23...
Qb8 {[%clk 0:01:20.2]} 24. Qf2 {[%clk 0:01:31.8]} 24... h3 {[%clk 0:01:19.4]}
25. g4 {[%clk 0:01:25.6]} 25... cxd4 {[%clk 0:01:19]} 26. exd4 {[%clk
0:01:23.7]} 26... Nf4 {[%clk 0:01:16.8]} 27. Ne3 {[%clk 0:01:16.6]} 27... Re7
{[%clk 0:01:05.1]} 28. Qh4 {[%clk 0:01:08.2]} 28... Qd6 {[%clk 0:00:56.6]} 29.
Kf2 {[%clk 0:00:46.1]} 29... Rde8 {[%clk 0:00:56.3]} 30. a3 {[%clk 0:00:40.6]}
30... Rxe3 {[%clk 0:00:49.6]} 31. Rxe3 {[%clk 0:00:38.1]} 31... Rxe3 {[%clk
0:00:50.5]} 32. Rg1 {[%clk 0:00:23.7]} 32... Re8 {[%clk 0:00:46.3]} 33. Qh6
{[%clk 0:00:21.6]} 33... Ne2 {[%clk 0:00:29.4]} 34. Qxh3 {[%clk 0:00:12.5]}
34... Nxd4 {[%clk 0:00:29.5]} 35. Qh6 {[%clk 0:00:07.7]} 35... Nd7 {[%clk
0:00:20.5]} 36. h4 {[%clk 0:00:06.6]} 36... Qh2+ {[%clk 0:00:19]} 37. Rg2 {[%clk
0:00:06]} 37... Qe5 {[%clk 0:00:18.4]} 38. Rg1 {[%clk 0:00:04.5]} 38... Qg7
{[%clk 0:00:15.1]} 39. Qd2 {[%clk 0:00:03]} 39... Nc5 {[%clk 0:00:13.6]} 40. Na4
{[%clk 0:00:02.1]} 40... Re2+ {[%clk 0:00:12.9]} 41. Qxe2 {[%clk 0:00:01.8]}
41... Nxe2 {[%clk 0:00:13.8]} 42. Nxc5 {[%clk 0:00:01.7]} 42... bxc5 {[%clk
0:00:12.7]} 43. Kxe2 {[%clk 0:00:01.6]} 43... Qxb2+ {[%clk 0:00:13.3]} 0-1

[Event "Early-Titled-Tuesday-Blitz-July-09-2024"]
[Site "Chess.com"]
[Date "2024.07.09"]
[Round "7"]
[White "guillembaches"]
[Black "slidingknight2775"]
[Result "0-1"]
[WhiteElo "2556"]
[BlackElo "2769"]
[TimeControl "180+1"]
[EndTime "9:20:09 PDT"]
[Termination "slidingknight2775 won by checkmate"]

1. e4 {[%clk 0:03:00.9]} 1... c6 {[%clk 0:02:58.6]} 2. d4 {[%clk 0:02:58.4]}
2... d5 {[%clk 0:02:58.6]} 3. e5 {[%clk 0:02:59]} 3... Bf5 {[%clk 0:02:58.2]} 4.
Be3 {[%clk 0:02:59.2]} 4... e6 {[%clk 0:02:58]} 5. Nd2 {[%clk 0:02:59.7]} 5...
Ne7 {[%clk 0:02:47.2]} 6. Be2 {[%clk 0:03:00.1]} 6... Nd7 {[%clk 0:02:45.1]} 7.
f4 {[%clk 0:02:59.9]} 7... c5 {[%clk 0:02:38.5]} 8. Ngf3 {[%clk 0:02:56.4]} 8...
Nc6 {[%clk 0:02:33.4]} 9. c4 {[%clk 0:02:48.7]} 9... cxd4 {[%clk 0:02:23.5]} 10.
Nxd4 {[%clk 0:02:47.2]} 10... Nxd4 {[%clk 0:02:01.7]} 11. Bxd4 {[%clk
0:02:48.1]} 11... Bc5 {[%clk 0:01:57.3]} 12. Nb3 {[%clk 0:02:30.3]} 12... Bb4+
{[%clk 0:01:49.8]} 13. Kf2 {[%clk 0:02:25.8]} 13... Be4 {[%clk 0:01:38.8]} 14.
a3 {[%clk 0:02:11.6]} 14... Be7 {[%clk 0:01:28.3]} 15. cxd5 {[%clk 0:02:11.2]}
15... Bxd5 {[%clk 0:01:28.4]} 16. Bf3 {[%clk 0:02:04.1]} 16... Nb6 {[%clk
0:01:19.7]} 17. Be3 {[%clk 0:01:09.3]} 17... O-O {[%clk 0:01:13.2]} 18. Rc1
{[%clk 0:00:56.7]} 18... Nc4 {[%clk 0:00:57]} 19. Bd4 {[%clk 0:00:50.3]} 19...
f6 {[%clk 0:00:30.2]} 20. exf6 {[%clk 0:00:44.2]} 20... Bxf6 {[%clk 0:00:30]}
21. Bxf6 {[%clk 0:00:43.4]} 21... Rxf6 {[%clk 0:00:20.2]} 22. Bxd5 {[%clk
0:00:30.7]} 22... exd5 {[%clk 0:00:21.1]} 23. g3 {[%clk 0:00:29.7]} 23... Qb6+
{[%clk 0:00:20.4]} 24. Nd4 {[%clk 0:00:29.3]} 24... Qxb2+ {[%clk 0:00:17.2]} 25.
Rc2 {[%clk 0:00:29.6]} 25... Qxa3 {[%clk 0:00:17.2]} 26. Re1 {[%clk 0:00:29.3]}
26... h6 {[%clk 0:00:11]} 27. Qh5 {[%clk 0:00:29.2]} 27... Qc5 {[%clk
0:00:09.1]} 28. Rd1 {[%clk 0:00:12.3]} 28... Rd8 {[%clk 0:00:09.6]} 29. Re2
{[%clk 0:00:12.4]} 29... a5 {[%clk 0:00:07.3]} 30. Kg2 {[%clk 0:00:12.8]} 30...
Kh8 {[%clk 0:00:07]} 31. Nf3 {[%clk 0:00:13]} 31... Ne3+ {[%clk 0:00:06.9]} 32.
Rxe3 {[%clk 0:00:13.4]} 32... Qxe3 {[%clk 0:00:07]} 33. Ne5 {[%clk 0:00:13.9]}
33... Qe4+ {[%clk 0:00:07.3]} 34. Kg1 {[%clk 0:00:12.5]} 34... Qf5 {[%clk
0:00:07.3]} 35. Qf3 {[%clk 0:00:11.2]} 35... Re8 {[%clk 0:00:07.6]} 36. Qc3
{[%clk 0:00:10.9]} 36... Qe4 {[%clk 0:00:07]} 37. Rd4 {[%clk 0:00:11]} 37...
Qb1+ {[%clk 0:00:04.4]} 38. Kg2 {[%clk 0:00:11.5]} 38... Rxe5 {[%clk 0:00:04.3]}
39. Qc8+ {[%clk 0:00:09.6]} 39... Kh7 {[%clk 0:00:04.9]} 40. fxe5 {[%clk
0:00:05.1]} 40... Qf1# {[%clk 0:00:04.7]} 0-1

[Event "Early-Titled-Tuesday-Blitz-July-09-2024"]
[Site "Chess.com"]
[Date "2024.07.09"]
[Round "7"]
[White "prosequi"]
[Black "IsuruAlahakoon"]
[Result "1-0"]
[WhiteElo "2350"]
[BlackElo "2426"]
[TimeControl "180+1"]
[EndTime "9:20:10 PDT"]
[Termination "prosequi won on time"]

1. e4 {[%clk 0:03:00.9]} 1... d5 {[%clk 0:02:59.7]} 2. exd5 {[%clk 0:03:00.8]}
2... Qd6 {[%clk 0:02:59.9]} 3. Nc3 {[%clk 0:02:52.5]} 3... Nf6 {[%clk
0:02:59.2]} 4. Nb5 {[%clk 0:02:47]} 4... Qd8 {[%clk 0:02:57.7]} 5. c4 {[%clk
0:02:46.7]} 5... c6 {[%clk 0:02:56.7]} 6. dxc6 {[%clk 0:02:44.1]} 6... Nxc6
{[%clk 0:02:56.7]} 7. Nf3 {[%clk 0:02:42.1]} 7... a6 {[%clk 0:02:51.9]} 8. Nc3
{[%clk 0:02:42.2]} 8... e5 {[%clk 0:02:51.9]} 9. d3 {[%clk 0:02:35.3]} 9... Bc5
{[%clk 0:02:48.9]} 10. Bg5 {[%clk 0:02:30.6]} 10... Qb6 {[%clk 0:02:42.6]} 11.
Qd2 {[%clk 0:02:16]} 11... Qa7 {[%clk 0:02:16.8]} 12. a3 {[%clk 0:01:56.4]}
12... Nd4 {[%clk 0:02:04.7]} 13. Nxd4 {[%clk 0:01:31.7]} 13... Bxd4 {[%clk
0:02:04.4]} 14. Bxf6 {[%clk 0:01:31.4]} 14... gxf6 {[%clk 0:02:04]} 15. Nd5
{[%clk 0:01:31.8]} 15... Be6 {[%clk 0:01:24.5]} 16. Nc7+ {[%clk 0:01:28.4]}
16... Ke7 {[%clk 0:01:24.6]} 17. Nxa8 {[%clk 0:01:28.2]} 17... Rxa8 {[%clk
0:01:24.4]} 18. g3 {[%clk 0:01:27.8]} 18... Rd8 {[%clk 0:01:09.2]} 19. Bg2
{[%clk 0:01:21.7]} 19... Bc5 {[%clk 0:00:39.3]} 20. Qe2 {[%clk 0:01:15.3]} 20...
h5 {[%clk 0:00:21.5]} 21. h4 {[%clk 0:01:01.1]} 21... Bg4 {[%clk 0:00:20.3]} 22.
Bf3 {[%clk 0:01:01.3]} 22... Bxf3 {[%clk 0:00:17.6]} 23. Qxf3 {[%clk 0:01:02.2]}
23... Qb6 {[%clk 0:00:18.2]} 24. Qe2 {[%clk 0:00:43.3]} 24... Bd4 {[%clk
0:00:14.9]} 25. O-O {[%clk 0:00:39.7]} 25... Rg8 {[%clk 0:00:14.6]} 26. Kh2
{[%clk 0:00:37.8]} 26... Rg4 {[%clk 0:00:13.6]} 27. f3 {[%clk 0:00:33.3]} 27...
Rg6 {[%clk 0:00:13]} 28. Rab1 {[%clk 0:00:33.6]} 28... Qe6 {[%clk 0:00:09.6]}
29. Qe4 {[%clk 0:00:32.3]} 29... f5 {[%clk 0:00:09.3]} 30. Qxb7+ {[%clk
0:00:32.1]} 30... Kf8 {[%clk 0:00:09.1]} 31. Qb4+ {[%clk 0:00:27.1]} 31... Kg8
{[%clk 0:00:08.3]} 32. Qd2 {[%clk 0:00:20.8]} 32... f4 {[%clk 0:00:07.3]} 33.
Rg1 {[%clk 0:00:17.8]} 33... Qf6 {[%clk 0:00:06.4]} 34. Kh3 {[%clk 0:00:10.8]}
34... Qf5+ {[%clk 0:00:05.8]} 35. g4 {[%clk 0:00:11.1]} 35... hxg4+ {[%clk
0:00:05.3]} 36. fxg4 {[%clk 0:00:12]} 36... Qf6 {[%clk 0:00:05]} 37. Qg2 {[%clk
0:00:11.9]} 37... f3 {[%clk 0:00:04.5]} 38. Qg3 {[%clk 0:00:11.7]} 38... f2
{[%clk 0:00:04.6]} 39. Rgf1 {[%clk 0:00:12.2]} 1-0

[Event "Early-Titled-Tuesday-Blitz-July-09-2024"]
[Site "Chess.com"]
[Date "2024.07.09"]
[Round "7"]
[White "waltereador"]
[Black "BobbyFischer1508"]
[Result "0-1"]
[WhiteElo "2319"]
[BlackElo "2439"]
[TimeControl "180+1"]
[EndTime "9:20:12 PDT"]
[Termination "BobbyFischer1508 won by checkmate"]

1. e4 {[%clk 0:03:00.9]} 1... e6 {[%clk 0:02:54.3]} 2. d4 {[%clk 0:03:00.1]}
2... d5 {[%clk 0:02:49.5]} 3. exd5 {[%clk 0:02:59.9]} 3... exd5 {[%clk
0:02:48.2]} 4. Nf3 {[%clk 0:03:00.8]} 4... c5 {[%clk 0:02:39.8]} 5. h3 {[%clk
0:03:00.2]} 5... Nc6 {[%clk 0:02:36.3]} 6. dxc5 {[%clk 0:02:47.5]} 6... Bxc5
{[%clk 0:02:35.2]} 7. Bd3 {[%clk 0:02:46.6]} 7... Nge7 {[%clk 0:02:34]} 8. O-O
{[%clk 0:02:46.6]} 8... h6 {[%clk 0:02:34.4]} 9. Nc3 {[%clk 0:02:46.1]} 9... O-O
{[%clk 0:02:33.9]} 10. Re1 {[%clk 0:02:44.9]} 10... a6 {[%clk 0:02:19.7]} 11.
Ne5 {[%clk 0:02:37.9]} 11... Qc7 {[%clk 0:02:10.7]} 12. Nxc6 {[%clk 0:02:33]}
12... bxc6 {[%clk 0:02:09.9]} 13. Ne2 {[%clk 0:02:29.9]} 13... Ng6 {[%clk
0:01:54]} 14. c3 {[%clk 0:02:27.6]} 14... a5 {[%clk 0:01:45.4]} 15. Nd4 {[%clk
0:02:25.5]} 15... Rb8 {[%clk 0:01:13.7]} 16. Be3 {[%clk 0:02:13.3]} 16... Bd6
{[%clk 0:00:50.3]} 17. b3 {[%clk 0:02:11.8]} 17... a4 {[%clk 0:00:48]} 18. Bc2
{[%clk 0:02:09.3]} 18... axb3 {[%clk 0:00:47.2]} 19. axb3 {[%clk 0:02:09.5]}
19... Bd7 {[%clk 0:00:41.6]} 20. b4 {[%clk 0:02:07.7]} 20... Ne5 {[%clk
0:00:40.2]} 21. Nf3 {[%clk 0:02:03.5]} 21... Nc4 {[%clk 0:00:35]} 22. Qd3 {[%clk
0:02:01.7]} 22... f5 {[%clk 0:00:23.3]} 23. Ra7 {[%clk 0:01:56]} 23... Rb7
{[%clk 0:00:21.4]} 24. Rxb7 {[%clk 0:01:53.1]} 24... Qxb7 {[%clk 0:00:21.5]} 25.
Bd4 {[%clk 0:01:53.2]} 25... Qa6 {[%clk 0:00:15.4]} 26. Nh4 {[%clk 0:01:44.2]}
26... Qa2 {[%clk 0:00:11.6]} 27. Ng6 {[%clk 0:01:40.7]} 27... Rf7 {[%clk
0:00:10.7]} 28. g3 {[%clk 0:01:30.6]} 28... Na3 {[%clk 0:00:09.7]} 29. Bd1
{[%clk 0:01:24.6]} 29... Qc4 {[%clk 0:00:09.3]} 30. Qxc4 {[%clk 0:01:21.6]}
30... Nxc4 {[%clk 0:00:09]} 31. Ne5 {[%clk 0:01:16.4]} 31... Nxe5 {[%clk
0:00:08.7]} 32. Bxe5 {[%clk 0:01:16.8]} 32... Bxe5 {[%clk 0:00:07.6]} 33. Rxe5
{[%clk 0:01:16]} 33... Kf8 {[%clk 0:00:08.3]} 34. f4 {[%clk 0:01:15.6]} 34...
Re7 {[%clk 0:00:08]} 35. Rxe7 {[%clk 0:01:15.1]} 35... Kxe7 {[%clk 0:00:07.7]}
36. Kf2 {[%clk 0:01:16]} 36... Kd6 {[%clk 0:00:08.2]} 37. Ke3 {[%clk 0:01:16.7]}
37... c5 {[%clk 0:00:08.7]} 38. Bc2 {[%clk 0:01:10.4]} 38... Be6 {[%clk
0:00:08.4]} 39. Bd1 {[%clk 0:01:09]} 39... Kc6 {[%clk 0:00:08]} 40. g4 {[%clk
0:01:05.8]} 40... d4+ {[%clk 0:00:07.2]} 41. cxd4 {[%clk 0:01:05.2]} 41... cxb4
{[%clk 0:00:07.5]} 42. Ba4+ {[%clk 0:01:02.8]} 42... Kd6 {[%clk 0:00:06.8]} 43.
gxf5 {[%clk 0:00:57.3]} 43... Bxf5 {[%clk 0:00:06.5]} 44. Bb3 {[%clk 0:00:57.9]}
44... Bxh3 {[%clk 0:00:05.7]} 45. Ke4 {[%clk 0:00:57.5]} 45... Be6 {[%clk
0:00:05.5]} 46. d5 {[%clk 0:00:55.4]} 46... Bf7 {[%clk 0:00:04.9]} 47. Kd4
{[%clk 0:00:55.2]} 47... h5 {[%clk 0:00:04.1]} 48. f5 {[%clk 0:00:53.4]} 48...
h4 {[%clk 0:00:03.9]} 49. Bd1 {[%clk 0:00:53.1]} 49... h3 {[%clk 0:00:03.8]} 50.
Bg4 {[%clk 0:00:52.6]} 50... h2 {[%clk 0:00:03.1]} 51. Bf3 {[%clk 0:00:52.8]}
51... b3 {[%clk 0:00:02.6]} 52. Kc3 {[%clk 0:00:53.2]} 52... Bxd5 {[%clk
0:00:02.5]} 53. Bxd5 {[%clk 0:00:53.1]} 53... Kxd5 {[%clk 0:00:03]} 54. f6
{[%clk 0:00:52.3]} 54... gxf6 {[%clk 0:00:02.6]} 55. Kxb3 {[%clk 0:00:52.2]}
55... h1=Q {[%clk 0:00:03.5]} 56. Kc3 {[%clk 0:00:53]} 56... Qg2 {[%clk
0:00:04.1]} 57. Kd3 {[%clk 0:00:53.2]} 57... Qg3+ {[%clk 0:00:05]} 58. Ke2
{[%clk 0:00:53.5]} 58... Qg4+ {[%clk 0:00:05.9]} 59. Kf1 {[%clk 0:00:54.3]}
59... f5 {[%clk 0:00:06.3]} 60. Kf2 {[%clk 0:00:54.3]} 60... f4 {[%clk
0:00:07.2]} 61. Kf1 {[%clk 0:00:54.9]} 61... f3 {[%clk 0:00:08]} 62. Ke1 {[%clk
0:00:55.8]} 62... Qg2 {[%clk 0:00:08.1]} 63. Kd1 {[%clk 0:00:55.9]} 63... Qa2
{[%clk 0:00:07.8]} 64. Kc1 {[%clk 0:00:56.8]} 64... f2 {[%clk 0:00:07.6]} 65.
Kd1 {[%clk 0:00:56.7]} 65... f1=Q# {[%clk 0:00:08.1]} 0-1

[Event "Early-Titled-Tuesday-Blitz-July-09-2024"]
[Site "Chess.com"]
[Date "2024.07.09"]
[Round "7"]
[White "FM_Kappeler"]
[Black "Happy1712Drummer"]
[Result "1-0"]
[WhiteElo "2295"]
[BlackElo "2435"]
[TimeControl "180+1"]
[EndTime "9:20:13 PDT"]
[Termination "FM_Kappeler won by resignation"]

1. d4 {[%clk 0:03:00.9]} 1... d5 {[%clk 0:02:56.6]} 2. c4 {[%clk 0:03:00.6]}
2... e6 {[%clk 0:02:49.9]} 3. Nf3 {[%clk 0:03:00.8]} 3... a6 {[%clk 0:02:46.7]}
4. cxd5 {[%clk 0:02:59.7]} 4... exd5 {[%clk 0:02:45]} 5. Bg5 {[%clk 0:03:00.1]}
5... Nf6 {[%clk 0:02:44.3]} 6. e3 {[%clk 0:02:54.8]} 6... Bd6 {[%clk 0:02:43.8]}
7. Bd3 {[%clk 0:02:52.5]} 7... Be6 {[%clk 0:02:43.6]} 8. Nc3 {[%clk 0:02:51.4]}
8... Nbd7 {[%clk 0:02:42.3]} 9. O-O {[%clk 0:02:48.7]} 9... c6 {[%clk 0:02:42]}
10. Rb1 {[%clk 0:02:39.6]} 10... a5 {[%clk 0:02:35.6]} 11. a3 {[%clk 0:02:38.7]}
11... O-O {[%clk 0:02:30.3]} 12. b4 {[%clk 0:02:38.1]} 12... axb4 {[%clk
0:02:30.7]} 13. axb4 {[%clk 0:02:38.1]} 13... b5 {[%clk 0:02:30.8]} 14. Ne2
{[%clk 0:02:31.2]} 14... h6 {[%clk 0:02:20]} 15. Bf4 {[%clk 0:02:31.1]} 15...
Nb6 {[%clk 0:02:17.7]} 16. Bxd6 {[%clk 0:02:29.9]} 16... Qxd6 {[%clk 0:02:18.6]}
17. Nf4 {[%clk 0:02:12.1]} 17... Bd7 {[%clk 0:02:09]} 18. Bc2 {[%clk 0:01:44.3]}
18... Nc4 {[%clk 0:02:02.4]} 19. Nd3 {[%clk 0:01:43.9]} 19... Bf5 {[%clk
0:01:56.1]} 20. Nc5 {[%clk 0:01:39.7]} 20... Bxc2 {[%clk 0:01:54.7]} 21. Qxc2
{[%clk 0:01:35.5]} 21... Na3 {[%clk 0:01:54.3]} 22. Qf5 {[%clk 0:01:31.9]} 22...
Nxb1 {[%clk 0:01:52.9]} 23. Rxb1 {[%clk 0:01:31.9]} 23... g6 {[%clk 0:01:42.6]}
24. Qd3 {[%clk 0:01:28.5]} 24... Nd7 {[%clk 0:01:31]} 25. Nxd7 {[%clk
0:01:24.1]} 25... Qxd7 {[%clk 0:01:31.9]} 26. Ne5 {[%clk 0:01:24.2]} 26... Qd6
{[%clk 0:01:30.6]} 27. Qc3 {[%clk 0:01:20.1]} 27... Rfc8 {[%clk 0:01:27.2]} 28.
Rc1 {[%clk 0:01:15]} 28... Ra4 {[%clk 0:01:22.8]} 29. Nd3 {[%clk 0:01:14.4]}
29... Rca8 {[%clk 0:01:15.5]} 30. h4 {[%clk 0:01:05.9]} 30... Ra3 {[%clk
0:01:06.2]} 31. Qc2 {[%clk 0:01:04.4]} 31... R8a4 {[%clk 0:00:50.8]} 32. h5
{[%clk 0:00:53.6]} 32... Kg7 {[%clk 0:00:34.5]} 33. Ne5 {[%clk 0:00:44.1]} 33...
Rxb4 {[%clk 0:00:26.4]} 34. hxg6 {[%clk 0:00:44]} 34... fxg6 {[%clk 0:00:20]}
35. Qe2 {[%clk 0:00:33.2]} 35... Ra6 {[%clk 0:00:03.5]} 36. Qg4 {[%clk
0:00:31.8]} 36... Rba4 {[%clk 0:00:03.8]} 37. Qc8 {[%clk 0:00:29.4]} 37... b4
{[%clk 0:00:03.8]} 38. g3 {[%clk 0:00:16.8]} 38... Ra7 {[%clk 0:00:03.2]} 39.
Nxc6 {[%clk 0:00:15.7]} 39... Rf7 {[%clk 0:00:02.6]} 40. Ne5 {[%clk 0:00:15.1]}
40... Re7 {[%clk 0:00:01.8]} 41. Rc6 {[%clk 0:00:14.6]} 41... Ra1+ {[%clk
0:00:02]} 42. Kg2 {[%clk 0:00:14.4]} 42... Qe6 {[%clk 0:00:01.3]} 43. Rxe6
{[%clk 0:00:14]} 1-0

[Event "Early-Titled-Tuesday-Blitz-July-09-2024"]
[Site "Chess.com"]
[Date "2024.07.09"]
[Round "7"]
[White "rasmussvane"]
[Black "Lion-Al-Messi"]
[Result "1-0"]
[WhiteElo "2908"]
[BlackElo "2661"]
[TimeControl "180+1"]
[EndTime "9:20:14 PDT"]
[Termination "rasmussvane won on time"]

1. Nf3 {[%clk 0:03:00.9]} 1... Nf6 {[%clk 0:02:59.9]} 2. g3 {[%clk 0:03:01.3]}
2... b6 {[%clk 0:03:00]} 3. Bg2 {[%clk 0:03:01.9]} 3... Bb7 {[%clk 0:03:00.5]}
4. O-O {[%clk 0:03:02.4]} 4... c5 {[%clk 0:03:01]} 5. c4 {[%clk 0:03:02.2]} 5...
g6 {[%clk 0:03:01.4]} 6. Nc3 {[%clk 0:03:01.9]} 6... Bg7 {[%clk 0:03:01.4]} 7.
d4 {[%clk 0:03:02.1]} 7... cxd4 {[%clk 0:03:01.7]} 8. Qxd4 {[%clk 0:03:02.9]}
8... Nc6 {[%clk 0:03:01.9]} 9. Qf4 {[%clk 0:02:59.6]} 9... Rc8 {[%clk
0:03:01.9]} 10. Rd1 {[%clk 0:02:55.5]} 10... Na5 {[%clk 0:03:01.6]} 11. b3
{[%clk 0:02:24.9]} 11... O-O {[%clk 0:03:00.7]} 12. Bb2 {[%clk 0:02:23]} 12...
d6 {[%clk 0:02:59.4]} 13. Rac1 {[%clk 0:02:22.5]} 13... Ne4 {[%clk 0:02:58.8]}
14. Ne1 {[%clk 0:02:07.4]} 14... f5 {[%clk 0:02:54]} 15. Qe3 {[%clk 0:01:51.5]}
15... Rxc4 {[%clk 0:02:35.4]} 16. Nxe4 {[%clk 0:01:23.7]} 16... Rxe4 {[%clk
0:02:26.6]} 17. Bxe4 {[%clk 0:01:21.4]} 17... Bxb2 {[%clk 0:02:26.5]} 18. Bxb7
{[%clk 0:01:19.4]} 18... Nxb7 {[%clk 0:02:10.6]} 19. Rc2 {[%clk 0:01:19.5]}
19... Bf6 {[%clk 0:02:08.9]} 20. Qe6+ {[%clk 0:01:12.2]} 20... Kg7 {[%clk
0:02:08.6]} 21. b4 {[%clk 0:01:12.5]} 21... a5 {[%clk 0:01:58.8]} 22. a3 {[%clk
0:01:11.7]} 22... axb4 {[%clk 0:01:58.3]} 23. axb4 {[%clk 0:01:12.6]} 23... Qa8
{[%clk 0:01:56.9]} 24. Nd3 {[%clk 0:01:05.4]} 24... Qa4 {[%clk 0:01:56.3]} 25.
Rdc1 {[%clk 0:01:05.3]} 25... Nd8 {[%clk 0:01:56.1]} 26. Qd5 {[%clk 0:01:03.6]}
26... Nf7 {[%clk 0:01:52.3]} 27. Nf4 {[%clk 0:01:00.1]} 27... Kg8 {[%clk
0:01:48.3]} 28. Ne6 {[%clk 0:00:54.7]} 28... Re8 {[%clk 0:01:46.2]} 29. Rc8
{[%clk 0:00:54.3]} 29... h5 {[%clk 0:01:38.4]} 30. Nd8 {[%clk 0:00:34.2]} 30...
Rxd8 {[%clk 0:01:32.5]} 31. Rxd8+ {[%clk 0:00:33.8]} 31... Kg7 {[%clk
0:01:33.1]} 32. Ra8 {[%clk 0:00:31.5]} 32... Qxb4 {[%clk 0:01:29.8]} 33. Rcc8
{[%clk 0:00:29.8]} 33... Qe1+ {[%clk 0:01:27.1]} 34. Kg2 {[%clk 0:00:30.1]}
34... Qxe2 {[%clk 0:01:26.7]} 35. h4 {[%clk 0:00:25.1]} 35... e6 {[%clk
0:01:09.6]} 36. Qb7 {[%clk 0:00:21.5]} 36... Bd4 {[%clk 0:01:08.4]} 37. Qf3
{[%clk 0:00:12.9]} 37... Qb2 {[%clk 0:01:03.2]} 38. Rc7 {[%clk 0:00:11]} 38...
b5 {[%clk 0:00:50.7]} 39. Rb8 {[%clk 0:00:08.7]} 39... e5 {[%clk 0:00:08.3]} 40.
Rxf7+ {[%clk 0:00:07]} 40... Kxf7 {[%clk 0:00:07.2]} 41. Qd5+ {[%clk 0:00:07.3]}
41... Ke7 {[%clk 0:00:03]} 42. Rb7+ {[%clk 0:00:07.2]} 1-0